[Event "CCT Chessable Masters Play-In 2025"]
[Site "Online"]
[Date "2025.02.17"]
[Round "1.53"]
[White "Rustemov, Alexander"]
[Black "Atabayev, Saparmyrat"]
[Result "1-0"]
[ECO "E12"]
[WhiteElo "2525"]
[BlackElo "2516"]
[PlyCount "125"]
[EventDate "2025.02.13"]
[EventType "swiss"]
[EventCountry "NET"]
[TimeControl "600"]
[WhiteClock "0:02:15"]
[BlackClock "0:01:25"]

1. d4 {[%emt 0:00:01]} Nf6 {[%emt 0:00:02]} 2. c4 {[%emt 0:00:00]} e6 {[%emt 0:00:01]} 3. Nf3 {[%emt 0:00:01]} b6 {[%emt 0:00:03]} 4. a3 {[%emt 0:00:01]} Bb7 {[%emt 0:00:03]} 5. Nc3 {[%emt 0:00:01]} d5 {[%emt 0:00:04]} 6. Bg5 {[%emt 0:00:01]} Be7 {[%emt 0:00:03]} 7. Bxf6 {[%emt 0:00:01]} Bxf6 {[%emt 0:00:01]} 8. cxd5 {[%emt 0:00:00]} exd5 {[%emt 0:00:01]} 9. Qa4+ {[%emt 0:00:00]} Nd7 {[%emt 0:00:04]} 10. g3 {[%emt 0:00:01]} O-O {[%emt 0:00:03]} 11. Bh3 {[%emt 0:00:01]} c6 {[%emt 0:00:06]} 12. Nxd5 {[%emt 0:00:01]} cxd5 {[%emt 0:00:11]} 13. Qxd7 {[%emt 0:00:04]} Qb8 {[%emt 0:00:06]} 14. Rc1 {[%emt 0:00:09]} Re8 {[%emt 0:00:18]} 15. Qc7 {[%emt 0:00:37]} Ba6 {[%emt 0:00:10]} 16. e3 {[%emt 0:00:08]} Bc4 {[%emt 0:00:20]} 17. Qxb8 {[%emt 0:00:03]} Raxb8 {[%emt 0:00:00]} 18. Kd2 {[%emt 0:00:38]} b5 {[%emt 0:00:06]} 19. Bf1 {[%emt 0:00:26]} a5 {[%emt 0:00:01]} 20. Bd3 {[%emt 0:00:10]} a4 {[%emt 0:00:11]} 21. Ne1 {[%emt 0:00:09]} Bd8 {[%emt 0:00:07]} 22. Nc2 {[%emt 0:00:02]} Ba5+ {[%emt 0:00:02]} 23. Nb4 {[%emt 0:00:02]} g6 {[%emt 0:00:07]} 24. Rhe1 {[%emt 0:00:12]} f5 {[%emt 0:00:02]} 25. f3 {[%emt 0:00:21]} Rbd8 {[%emt 0:00:20]} 26. Re2 {[%emt 0:00:16]} Kf7 {[%emt 0:00:06]} 27. Rce1 {[%emt 0:00:03]} Rd6 {[%emt 0:00:12]} 28. Bxc4 {[%emt 0:00:42]} bxc4 {[%emt 0:00:03]} 29. Kc3 {[%emt 0:00:00]} Red8 {[%emt 0:01:06]} 30. e4 {[%emt 0:00:06]} dxe4 {[%emt 0:00:01]} 31. fxe4 {[%emt 0:00:00]} Rxd4 {[%emt 0:00:03]} 32. exf5 {[%emt 0:00:03]} gxf5 {[%emt 0:00:11]} 33. Re7+ {[%emt 0:00:02]} Kg8 {[%emt 0:00:09]} 34. Re8+ {[%emt 0:00:12]} Kf7 {[%emt 0:00:01]} 35. R8e7+ {[%emt 0:00:22]} Kg8 {[%emt 0:00:05]} 36. R1e5 {[%emt 0:00:05]} Bxb4+ {[%emt 0:01:23]} 37. axb4 {[%emt 0:00:01]} f4 {[%emt 0:00:16]} 38. Re8+ {[%emt 0:00:13]} Kf7 {[%emt 0:00:02]} 39. Rxd8 {[%emt 0:00:06]} Rxd8 {[%emt 0:00:00]} 40. Rf5+ {[%emt 0:00:09]} Ke6 {[%emt 0:00:12]} 41. Rxf4 {[%emt 0:00:01]} Rd3+ {[%emt 0:00:01]} 42. Kxc4 {[%emt 0:00:16]} Rd2 {[%emt 0:00:00]} 43. Rh4 {[%emt 0:00:14]} Rxb2 {[%emt 0:00:08]} 44. Rxh7 {[%emt 0:00:07]} a3 {[%emt 0:00:01]} 45. Ra7 {[%emt 0:00:06]} a2 {[%emt 0:00:07]} 46. h4 {[%emt 0:00:19]} Kd6 {[%emt 0:00:08]} 47. Kb5 {[%emt 0:00:08]} Ke6 {[%emt 0:00:50]} 48. h5 {[%emt 0:00:07]} Rh2 {[%emt 0:00:03]} 49. g4 {[%emt 0:00:11]} Kd5 {[%emt 0:00:09]} 50. h6 {[%emt 0:00:07]} Kd6 {[%emt 0:00:17]} 51. h7 {[%emt 0:00:17]} Rxh7 {[%emt 0:00:01]} 52. Rxa2 {[%emt 0:00:02]} Rb7+ {[%emt 0:00:01]} 53. Kc4 {[%emt 0:00:03]} Rc7+ {[%emt 0:00:06]} 54. Kb3 {[%emt 0:00:03]} Rc1 {[%emt 0:00:14]} 55. Rg2 {[%emt 0:00:03]} Ke6 {[%emt 0:00:02]} 56. g5 {[%emt 0:00:01]} Kf7 {[%emt 0:00:01]} 57. g6+ {[%emt 0:00:01]} Kg7 {[%emt 0:00:00]} 58. b5 {[%emt 0:00:01]} Rb1+ {[%emt 0:00:01]} 59. Kc4 {[%emt 0:00:01]} Rc1+ {[%emt 0:00:00]} 60. Kd5 {[%emt 0:00:02]} Rd1+ {[%emt 0:00:02]} 61. Kc6 {[%emt 0:00:01]} Rc1+ {[%emt 0:00:00]} 62. Kb7 {[%emt 0:00:02]} Rc2 {[%emt 0:00:01]} 63. Rxc2 {[%emt 0:00:02]} 1-0

[Event "CCT Chessable Masters Play-In 2025"]
[Site "Online"]
[Date "2025.02.17"]
[Round "1.54"]
[White "Blohberger, Felix"]
[Black "Le, Quang Liem"]
[Result "1/2-1/2"]
[ECO "D05"]
[WhiteElo "2532"]
[BlackElo "2739"]
[PlyCount "80"]
[EventDate "2025.02.13"]
[EventType "swiss"]
[EventCountry "NET"]
[TimeControl "600"]
[WhiteClock "0:02:36"]
[BlackClock "0:01:17"]

1. d4 {[%emt 0:00:08]} Nf6 {[%emt 0:00:02]} 2. Nf3 {[%emt 0:00:02]} d5 {[%emt 0:00:02]} 3. e3 {[%emt 0:00:01]} e6 {[%emt 0:00:02]} 4. Bd3 {[%emt 0:00:02]} b6 {[%emt 0:00:05]} 5. O-O {[%emt 0:00:03]} Bb7 {[%emt 0:00:01]} 6. b3 {[%emt 0:00:02]} Be7 {[%emt 0:00:05]} 7. c4 {[%emt 0:00:11]} O-O {[%emt 0:00:05]} 8. cxd5 {[%emt 0:00:09]} exd5 {[%emt 0:00:30]} 9. Ba3 {[%emt 0:00:02]} c5 {[%emt 0:00:07]} 10. Nc3 {[%emt 0:00:02]} Nbd7 {[%emt 0:00:06]} 11. Rc1 {[%emt 0:00:04]} Rc8 {[%emt 0:00:16]} 12. Bf5 {[%emt 0:00:41]} g6 {[%emt 0:00:40]} 13. Bh3 {[%emt 0:00:06]} c4 {[%emt 0:00:31]} 14. Bxe7 {[%emt 0:00:02]} Qxe7 {[%emt 0:00:01]} 15. Ne5 {[%emt 0:00:01]} a6 {[%emt 0:00:42]} 16. Na4 {[%emt 0:00:13]} cxb3 {[%emt 0:02:10]} 17. Qxb3 {[%emt 0:00:25]} Rxc1 {[%emt 0:00:16]} 18. Rxc1 {[%emt 0:00:02]} Nxe5 {[%emt 0:00:08]} 19. dxe5 {[%emt 0:00:02]} Qxe5 {[%emt 0:00:01]} 20. Qxb6 {[%emt 0:00:07]} Ba8 {[%emt 0:00:12]} 21. Qxa6 {[%emt 0:00:13]} d4 {[%emt 0:00:08]} 22. exd4 {[%emt 0:00:35]} Qxd4 {[%emt 0:00:17]} 23. Qc4 {[%emt 0:00:12]} Qxc4 {[%emt 0:00:29]} 24. Rxc4 {[%emt 0:00:00]} Bd5 {[%emt 0:00:01]} 25. Rc2 {[%emt 0:00:12]} Ra8 {[%emt 0:00:12]} 26. Nc3 {[%emt 0:00:03]} Bc4 {[%emt 0:00:09]} 27. g3 {[%emt 0:00:18]} Kg7 {[%emt 0:00:36]} 28. Bf1 {[%emt 0:00:19]} Be6 {[%emt 0:00:01]} 29. Bg2 {[%emt 0:00:52]} Rc8 {[%emt 0:00:27]} 30. Rc1 {[%emt 0:00:29]} Bd5 {[%emt 0:00:07]} 31. a4 {[%emt 0:00:32]} Bxg2 {[%emt 0:00:01]} 32. Kxg2 {[%emt 0:00:01]} Rc4 {[%emt 0:00:00]} 33. a5 {[%emt 0:00:34]} Rc5 {[%emt 0:00:03]} 34. a6 {[%emt 0:00:26]} Ra5 {[%emt 0:00:01]} 35. Rc2 {[%emt 0:00:06]} Rxa6 {[%emt 0:00:01]} 36. Ra2 {[%emt 0:00:00]} Rxa2 {[%emt 0:00:01]} 37. Nxa2 {[%emt 0:00:00]} Nd5 {[%emt 0:00:01]} 38. Nc1 {[%emt 0:00:02]} Kf6 {[%emt 0:00:01]} 39. Kf3 {[%emt 0:00:01]} g5 {[%emt 0:00:03]} 40. Nd3 {[%emt 0:00:04]} Kf5 {[%emt 0:00:02]} 1/2-1/2

[Event "CCT Chessable Masters Play-In 2025"]
[Site "Online"]
[Date "2025.02.17"]
[Round "1.55"]
[White "Ivic, Velimir"]
[Black "Fier, Alexandr"]
[Result "1-0"]
[ECO "C77"]
[WhiteElo "2622"]
[BlackElo "2547"]
[PlyCount "85"]
[EventDate "2025.02.13"]
[EventType "swiss"]
[EventCountry "NET"]
[TimeControl "600"]
[WhiteClock "0:04:03"]
[BlackClock "0:06:43"]

1. e4 {[%emt 0:00:01]} e5 {[%emt 0:00:02]} 2. Nf3 {[%emt 0:00:04]} Nc6 {[%emt 0:00:01]} 3. Bb5 {[%emt 0:00:01]} a6 {[%emt 0:00:03]} 4. Ba4 {[%emt 0:00:00]} Nf6 {[%emt 0:00:00]} 5. d3 {[%emt 0:00:03]} b5 {[%emt 0:00:02]} 6. Bb3 {[%emt 0:00:02]} Bc5 {[%emt 0:00:00]} 7. c3 {[%emt 0:00:01]} d6 {[%emt 0:00:02]} 8. Nbd2 {[%emt 0:00:01]} O-O {[%emt 0:00:06]} 9. Nf1 {[%emt 0:00:01]} d5 {[%emt 0:00:03]} 10. exd5 {[%emt 0:00:02]} Nxd5 {[%emt 0:00:01]} 11. Ng3 {[%emt 0:00:00]} f6 {[%emt 0:00:10]} 12. O-O {[%emt 0:00:07]} Be6 {[%emt 0:00:02]} 13. d4 {[%emt 0:00:11]} exd4 {[%emt 0:00:02]} 14. cxd4 {[%emt 0:00:08]} Bb6 {[%emt 0:00:12]} 15. Re1 {[%emt 0:00:02]} Bf7 {[%emt 0:00:01]} 16. a3 {[%emt 0:00:50]} Qd7 {[%emt 0:00:03]} 17. Be3 {[%emt 0:00:05]} Rae8 {[%emt 0:00:03]} 18. Rc1 {[%emt 0:00:01]} Na5 {[%emt 0:00:05]} 19. Ba2 {[%emt 0:00:09]} Kh8 {[%emt 0:00:02]} 20. Bd2 {[%emt 0:00:01]} Nc6 {[%emt 0:00:03]} 21. Ne2 {[%emt 0:00:24]} Ne3 {[%emt 0:00:09]} 22. Bxe3 {[%emt 0:00:04]} Bxa2 {[%emt 0:00:01]} 23. b3 {[%emt 0:00:24]} Na5 {[%emt 0:00:04]} 24. Nd2 {[%emt 0:00:06]} Qf7 {[%emt 0:00:02]} 25. Rc3 {[%emt 0:00:10]} f5 {[%emt 0:00:09]} 26. Bf4 {[%emt 0:00:22]} Qe7 {[%emt 0:00:17]} 27. Be5 {[%emt 0:00:12]} Qxa3 {[%emt 0:00:06]} 28. Nf4 {[%emt 0:00:04]} Qb4 {[%emt 0:00:24]} 29. Nd5 {[%emt 0:00:18]} Qa3 {[%emt 0:00:05]} 30. b4 {[%emt 0:00:28]} Qb2 {[%emt 0:00:07]} 31. Rc2 {[%emt 0:00:07]} Qa3 {[%emt 0:00:08]} 32. Nxb6 {[%emt 0:00:17]} cxb6 {[%emt 0:00:02]} 33. bxa5 {[%emt 0:00:01]} Qxa5 {[%emt 0:00:05]} 34. Rc7 {[%emt 0:00:05]} Bf7 {[%emt 0:00:03]} 35. Nf3 {[%emt 0:00:32]} h6 {[%emt 0:00:06]} 36. h4 {[%emt 0:00:12]} Qb4 {[%emt 0:00:06]} 37. Rxf7 {[%emt 0:00:06]} Rxf7 {[%emt 0:00:05]} 38. Bxg7+ {[%emt 0:00:01]} Kxg7 {[%emt 0:00:01]} 39. Rxe8 {[%emt 0:00:00]} a5 {[%emt 0:00:03]} 40. Qe2 {[%emt 0:00:06]} Qd6 {[%emt 0:00:05]} 41. Re6 {[%emt 0:00:01]} Qd5 {[%emt 0:00:02]} 42. Re5 {[%emt 0:00:02]} Qd7 {[%emt 0:00:04]} 43. Rxb5 {[%emt 0:00:05]} 1-0

[Event "CCT Chessable Masters Play-In 2025"]
[Site "Online"]
[Date "2025.02.17"]
[Round "1.56"]
[White "Pakleza, Zbigniew"]
[Black "Martirosyan, Haik M."]
[Result "0-1"]
[ECO "A47"]
[WhiteElo "2485"]
[BlackElo "2645"]
[PlyCount "116"]
[EventDate "2025.02.13"]
[EventType "swiss"]
[EventCountry "NET"]
[TimeControl "600"]
[WhiteClock "0:00:52"]
[BlackClock "0:03:03"]

1. d4 {[%emt 0:00:03]} Nf6 {[%emt 0:00:02]} 2. Nf3 {[%emt 0:00:02]} e6 {[%emt 0:00:03]} 3. Bf4 {[%emt 0:00:01]} b6 {[%emt 0:00:03]} 4. e3 {[%emt 0:00:02]} Bb7 {[%emt 0:00:01]} 5. h3 {[%emt 0:00:01]} Bd6 {[%emt 0:00:01]} 6. Bxd6 {[%emt 0:00:01]} cxd6 {[%emt 0:00:01]} 7. Nbd2 {[%emt 0:00:01]} d5 {[%emt 0:00:03]} 8. Be2 {[%emt 0:00:01]} O-O {[%emt 0:00:01]} 9. O-O {[%emt 0:00:01]} d6 {[%emt 0:00:01]} 10. c4 {[%emt 0:00:03]} dxc4 {[%emt 0:00:04]} 11. Nxc4 {[%emt 0:00:00]} Qe7 {[%emt 0:00:03]} 12. Qb3 {[%emt 0:00:05]} Nc6 {[%emt 0:00:04]} 13. Rfc1 {[%emt 0:00:05]} Rfd8 {[%emt 0:00:03]} 14. a4 {[%emt 0:00:11]} Rab8 {[%emt 0:00:03]} 15. Qa3 {[%emt 0:01:07]} Nd5 {[%emt 0:00:17]} 16. Ne1 {[%emt 0:00:21]} Ncb4 {[%emt 0:00:46]} 17. Nd3 {[%emt 0:00:57]} a5 {[%emt 0:00:02]} 18. Bf3 {[%emt 0:00:18]} Ba6 {[%emt 0:00:08]} 19. Nxb4 {[%emt 0:00:19]} Nxb4 {[%emt 0:00:04]} 20. Rc3 {[%emt 0:00:17]} e5 {[%emt 0:00:05]} 21. Qb3 {[%emt 0:00:59]} e4 {[%emt 0:00:38]} 22. Bd1 {[%emt 0:00:10]} g6 {[%emt 0:00:27]} 23. Na3 {[%emt 0:00:33]} Qf6 {[%emt 0:00:11]} 24. Nb5 {[%emt 0:00:32]} Kg7 {[%emt 0:00:08]} 25. Nc7 {[%emt 0:00:15]} Bb7 {[%emt 0:00:16]} 26. Be2 {[%emt 0:00:02]} h5 {[%emt 0:00:08]} 27. Rac1 {[%emt 0:00:03]} Rd7 {[%emt 0:00:02]} 28. Bf1 {[%emt 0:00:36]} Rbd8 {[%emt 0:00:06]} 29. Nb5 {[%emt 0:00:03]} Bd5 {[%emt 0:00:03]} 30. Bc4 {[%emt 0:00:02]} Bb7 {[%emt 0:00:12]} 31. Bf1 {[%emt 0:00:02]} Re7 {[%emt 0:00:07]} 32. Rc7 {[%emt 0:00:03]} Rdd7 {[%emt 0:00:03]} 33. Rxd7 {[%emt 0:00:05]} Rxd7 {[%emt 0:00:00]} 34. Rc7 {[%emt 0:00:07]} Rxc7 {[%emt 0:00:19]} 35. Nxc7 {[%emt 0:00:00]} Qe7 {[%emt 0:00:01]} 36. Nb5 {[%emt 0:00:07]} h4 {[%emt 0:00:06]} 37. Qc3 {[%emt 0:00:01]} Kf8 {[%emt 0:00:08]} 38. Be2 {[%emt 0:00:07]} d5 {[%emt 0:00:18]} 39. f4 {[%emt 0:00:13]} Qd7 {[%emt 0:00:29]} 40. Qe1 {[%emt 0:00:03]} Qd8 {[%emt 0:00:03]} 41. Qc3 {[%emt 0:00:01]} Qc8 {[%emt 0:00:02]} 42. Qxc8+ {[%emt 0:00:04]} Bxc8 {[%emt 0:00:00]} 43. Nc3 {[%emt 0:00:04]} Bd7 {[%emt 0:00:06]} 44. Kf2 {[%emt 0:00:01]} Ke7 {[%emt 0:00:01]} 45. g4 {[%emt 0:00:02]} hxg3+ {[%emt 0:00:05]} 46. Kxg3 {[%emt 0:00:01]} Kd6 {[%emt 0:00:15]} 47. h4 {[%emt 0:00:00]} Nc2 {[%emt 0:00:01]} 48. Kf2 {[%emt 0:00:03]} Nb4 {[%emt 0:00:01]} 49. h5 {[%emt 0:00:02]} gxh5 {[%emt 0:00:00]} 50. Bxh5 {[%emt 0:00:00]} Nd3+ {[%emt 0:00:02]} 51. Kg3 {[%emt 0:00:03]} Nxb2 {[%emt 0:00:15]} 52. Bxf7 {[%emt 0:00:01]} Bc6 {[%emt 0:00:09]} 53. f5 {[%emt 0:00:11]} Nxa4 {[%emt 0:00:01]} 54. Nxa4 {[%emt 0:00:12]} Bxa4 {[%emt 0:00:01]} 55. f6 {[%emt 0:00:01]} Bc6 {[%emt 0:00:08]} 56. Kf4 {[%emt 0:00:10]} a4 {[%emt 0:00:01]} 57. Kf5 {[%emt 0:00:06]} a3 {[%emt 0:00:03]} 58. Bh5 {[%emt 0:00:07]} a2 {[%emt 0:00:06]} 0-1

[Event "CCT Chessable Masters Play-In 2025"]
[Site "Online"]
[Date "2025.02.17"]
[Round "1.57"]
[White "Paravyan, David"]
[Black "Gokerkan, Cem Kaan"]
[Result "1/2-1/2"]
[ECO "B45"]
[WhiteElo "2621"]
[BlackElo "2473"]
[PlyCount "86"]
[EventDate "2025.02.13"]
[EventType "swiss"]
[EventCountry "NET"]
[TimeControl "600"]
[WhiteClock "0:02:13"]
[BlackClock "0:02:36"]

1. e4 {[%emt 0:00:01]} c5 {[%emt 0:00:02]} 2. Nf3 {[%emt 0:00:01]} e6 {[%emt 0:00:01]} 3. d4 {[%emt 0:00:04]} cxd4 {[%emt 0:00:00]} 4. Nxd4 {[%emt 0:00:01]} Nc6 {[%emt 0:00:01]} 5. Nc3 {[%emt 0:00:09]} Nf6 {[%emt 0:00:01]} 6. a3 {[%emt 0:00:13]} d6 {[%emt 0:00:09]} 7. Be3 {[%emt 0:00:02]} Be7 {[%emt 0:00:01]} 8. Bd3 {[%emt 0:00:01]} O-O {[%emt 0:00:02]} 9. O-O {[%emt 0:00:02]} a6 {[%emt 0:00:19]} 10. Nxc6 {[%emt 0:00:14]} bxc6 {[%emt 0:00:00]} 11. Na4 {[%emt 0:00:03]} Rb8 {[%emt 0:00:52]} 12. b4 {[%emt 0:00:02]} a5 {[%emt 0:00:02]} 13. c3 {[%emt 0:00:07]} e5 {[%emt 0:00:31]} 14. h3 {[%emt 0:00:19]} d5 {[%emt 0:00:28]} 15. exd5 {[%emt 0:00:07]} cxd5 {[%emt 0:00:00]} 16. Bc5 {[%emt 0:00:01]} axb4 {[%emt 0:00:37]} 17. axb4 {[%emt 0:00:08]} Bxc5 {[%emt 0:00:51]} 18. Nxc5 {[%emt 0:00:02]} Nd7 {[%emt 0:00:06]} 19. Ra5 {[%emt 0:00:53]} Nxc5 {[%emt 0:00:19]} 20. Rxc5 {[%emt 0:00:00]} Be6 {[%emt 0:00:01]} 21. Re1 {[%emt 0:00:06]} Qf6 {[%emt 0:00:02]} 22. Qe2 {[%emt 0:01:51]} e4 {[%emt 0:00:08]} 23. Ba6 {[%emt 0:00:01]} d4 {[%emt 0:01:45]} 24. Qxe4 {[%emt 0:00:45]} dxc3 {[%emt 0:00:02]} 25. Bd3 {[%emt 0:00:01]} g6 {[%emt 0:00:01]} 26. Rc6 {[%emt 0:00:07]} Rfd8 {[%emt 0:00:11]} 27. b5 {[%emt 0:01:07]} Qg5 {[%emt 0:00:01]} 28. Qe3 {[%emt 0:00:51]} Qxe3 {[%emt 0:00:41]} 29. Rxe3 {[%emt 0:00:00]} Bd7 {[%emt 0:00:00]} 30. Rxc3 {[%emt 0:00:19]} Bxb5 {[%emt 0:00:01]} 31. Bxb5 {[%emt 0:00:01]} Rxb5 {[%emt 0:00:00]} 32. Rcd3 {[%emt 0:00:01]} Rxd3 {[%emt 0:00:01]} 33. Rxd3 {[%emt 0:00:00]} Kg7 {[%emt 0:00:01]} 34. Kh2 {[%emt 0:00:00]} h5 {[%emt 0:00:01]} 35. h4 {[%emt 0:00:01]} Rf5 {[%emt 0:00:00]} 36. Kg1 {[%emt 0:00:02]} Rf6 {[%emt 0:00:01]} 37. g3 {[%emt 0:00:01]} Rf5 {[%emt 0:00:00]} 38. Kg2 {[%emt 0:00:00]} Rf6 {[%emt 0:00:01]} 39. Rf3 {[%emt 0:00:01]} Ra6 {[%emt 0:00:01]} 40. Re3 {[%emt 0:00:00]} Rb6 {[%emt 0:00:02]} 41. Rf3 {[%emt 0:00:01]} Ra6 {[%emt 0:00:00]} 42. Re3 {[%emt 0:00:00]} Rb6 {[%emt 0:00:01]} 43. Rf3 {[%emt 0:00:01]} Ra6 {[%emt 0:00:00]} 1/2-1/2

[Event "CCT Chessable Masters Play-In 2025"]
[Site "Online"]
[Date "2025.02.17"]
[Round "1.58"]
[White "Sonis, Francesco"]
[Black "Indjic, Aleksandar"]
[Result "0-1"]
[ECO "C65"]
[WhiteElo "2570"]
[BlackElo "2650"]
[PlyCount "124"]
[EventDate "2025.02.13"]
[EventType "swiss"]
[EventCountry "NET"]
[TimeControl "600"]
[WhiteClock "0:01:08"]
[BlackClock "0:01:44"]

1. e4 {[%emt 0:00:11]} e5 {[%emt 0:00:04]} 2. Nf3 {[%emt 0:00:03]} Nc6 {[%emt 0:00:02]} 3. Bb5 {[%emt 0:00:12]} Bc5 {[%emt 0:00:03]} 4. c3 {[%emt 0:00:11]} Nf6 {[%emt 0:00:02]} 5. d3 {[%emt 0:00:02]} O-O {[%emt 0:00:02]} 6. O-O {[%emt 0:00:23]} d6 {[%emt 0:00:02]} 7. Nbd2 {[%emt 0:00:02]} Bd7 {[%emt 0:00:05]} 8. Re1 {[%emt 0:00:04]} a6 {[%emt 0:00:03]} 9. Ba4 {[%emt 0:00:04]} Ng4 {[%emt 0:00:09]} 10. Re2 {[%emt 0:00:07]} f5 {[%emt 0:00:08]} 11. h3 {[%emt 0:00:06]} Nh6 {[%emt 0:00:14]} 12. Nf1 {[%emt 0:00:25]} fxe4 {[%emt 0:00:02]} 13. Rxe4 {[%emt 0:00:09]} Nf7 {[%emt 0:00:52]} 14. Bb3 {[%emt 0:00:10]} Bf5 {[%emt 0:00:14]} 15. Re1 {[%emt 0:00:05]} Ba7 {[%emt 0:00:19]} 16. Ng3 {[%emt 0:00:04]} Bg6 {[%emt 0:00:36]} 17. h4 {[%emt 0:00:36]} h6 {[%emt 0:00:06]} 18. h5 {[%emt 0:00:03]} Bh7 {[%emt 0:00:01]} 19. Be3 {[%emt 0:00:12]} Bxe3 {[%emt 0:00:03]} 20. Rxe3 {[%emt 0:00:02]} Kh8 {[%emt 0:00:02]} 21. d4 {[%emt 0:00:13]} exd4 {[%emt 0:00:01]} 22. Nxd4 {[%emt 0:00:02]} Nxd4 {[%emt 0:00:12]} 23. Qxd4 {[%emt 0:00:02]} Ne5 {[%emt 0:00:02]} 24. Rf1 {[%emt 0:00:38]} c5 {[%emt 0:00:11]} 25. Qd2 {[%emt 0:00:04]} Qh4 {[%emt 0:00:05]} 26. Be6 {[%emt 0:00:26]} Rf6 {[%emt 0:00:24]} 27. f4 {[%emt 0:00:31]} Rxe6 {[%emt 0:01:11]} 28. fxe5 {[%emt 0:00:04]} Rxe5 {[%emt 0:00:01]} 29. Rxe5 {[%emt 0:00:10]} dxe5 {[%emt 0:00:00]} 30. Qe3 {[%emt 0:00:01]} Re8 {[%emt 0:00:04]} 31. Rf7 {[%emt 0:00:09]} b6 {[%emt 0:00:02]} 32. a3 {[%emt 0:00:10]} a5 {[%emt 0:00:03]} 33. Qf2 {[%emt 0:00:14]} Qd8 {[%emt 0:00:12]} 34. Rb7 {[%emt 0:00:14]} Rf8 {[%emt 0:00:04]} 35. Qe1 {[%emt 0:00:10]} e4 {[%emt 0:00:05]} 36. Nxe4 {[%emt 0:00:23]} Re8 {[%emt 0:00:25]} 37. Qg3 {[%emt 0:00:07]} Qd1+ {[%emt 0:00:02]} 38. Kh2 {[%emt 0:00:16]} Qxh5+ {[%emt 0:00:01]} 39. Kg1 {[%emt 0:00:01]} Bg6 {[%emt 0:00:14]} 40. Nd6 {[%emt 0:00:12]} Re5 {[%emt 0:00:02]} 41. Nf7+ {[%emt 0:00:14]} Bxf7 {[%emt 0:00:09]} 42. Rxf7 {[%emt 0:00:00]} Rg5 {[%emt 0:00:53]} 43. Rf8+ {[%emt 0:00:04]} Kh7 {[%emt 0:00:01]} 44. Qd3+ {[%emt 0:00:05]} Qg6 {[%emt 0:00:01]} 45. Qxg6+ {[%emt 0:00:01]} Rxg6 {[%emt 0:00:03]} 46. Rb8 {[%emt 0:00:02]} Rd6 {[%emt 0:00:02]} 47. Kf1 {[%emt 0:00:02]} Kg6 {[%emt 0:00:02]} 48. Ke2 {[%emt 0:00:02]} Kg5 {[%emt 0:00:01]} 49. Kf3 {[%emt 0:00:09]} h5 {[%emt 0:00:00]} 50. Kg3 {[%emt 0:00:03]} g6 {[%emt 0:00:03]} 51. b4 {[%emt 0:00:03]} cxb4 {[%emt 0:00:01]} 52. cxb4 {[%emt 0:00:02]} axb4 {[%emt 0:00:01]} 53. axb4 {[%emt 0:00:01]} Kf5 {[%emt 0:00:02]} 54. b5 {[%emt 0:00:03]} Ke4 {[%emt 0:00:03]} 55. Rb7 {[%emt 0:00:05]} Kd4 {[%emt 0:00:02]} 56. Rc7 {[%emt 0:00:03]} g5 {[%emt 0:00:06]} 57. Rc6 {[%emt 0:00:14]} Kd5 {[%emt 0:00:02]} 58. Rc1 {[%emt 0:00:02]} Rf6 {[%emt 0:00:02]} 59. Rh1 {[%emt 0:00:02]} Rh6 {[%emt 0:00:05]} 60. Rc1 {[%emt 0:00:02]} Ke5 {[%emt 0:00:01]} 61. Kf3 {[%emt 0:00:05]} Rd6 {[%emt 0:00:04]} 62. Rc6 {[%emt 0:00:10]} Rxc6 {[%emt 0:00:02]} 0-1